Cogmind - Beta 12 @@@ ROGUE MODE // 2023.10.18 @ 17:35:12 Player: Figgis Result: Destroyed by H-55 Commando with Gauss Rifle Performance ------------- Evolutions (1) 500 Regions Visited (6) 1200 Robots Destroyed (7) 35 Value Destroyed (145) 145 Prototype IDs (24) 480 Alien Tech Used (0) 0 Bonus (500) 500 TOTAL SCORE: 2860 Bonus ------- Pacifist 200 Aligned with FarCom 300 Cogmind --------- Core Integrity 0/400 Matter 243/300 Energy 98/100 System Corruption 2% Temperature Cool (11) Movement Walking (170) Ox1 Location -8/Mines Parts ------- > --- POWER (1) -------- (None) > --- PROPULSION (3) --- Potential Leg Potential Leg > --- UTILITY (3) ------ Huge Storage Unit Advanced Visual Processing Unit > --- WEAPON (2) ------- (None) > --- INVENTORY (25) --- Improved Ion Engine VTOL Module VTOL Module VTOL Module Small Storage Unit Huge Storage Unit Humpback Improved Sensor Array Improved Power Shielding Supersonic Drone Bay (1/1) AWS/Autocannon Peak State ------------ > --- POWER ------------ Light Ion Engine > --- PROPULSION ------- Potential Leg Potential Leg Improved Flight Unit > --- UTILITY ---------- Huge Storage Unit Advanced Visual Processing Unit Supersonic Drone Bay > --- WEAPON ----------- Mace Mace > --- INVENTORY -------- Improved Ion Engine VTOL Module VTOL Module VTOL Module Small Storage Unit Huge Storage Unit Humpback Improved Sensor Array Improved Power Shielding Propulsion Shielding AWS/Autocannon [Rating: 44] Favorites ----------- Power Light Ion Engine Engine Light Ion Engine Propulsion Improved Flight Unit Treads Light Treads Leg Potential Leg Flight Unit Improved Flight Unit Utility Advanced Visual Processing Unit Device Improved Sensor Array Storage Huge Storage Unit Processor Advanced Visual Processing Unit Protection Propulsion Shielding Weapon Mace Energy Gun Small Laser Impact Weapon Mace Build | -11 -10 -10 -9 -9 -9 -8 ------- Run | Jun Mat Min Mat Min Exi Min Slots Evolved 2 | . . . 2 . . . Power . | . . . . . . . Propulsion 1 | . . . 1 . . . Utility 1 | . . . 1 . . . Weapon . | . . . . . . . Parts Attached 28 | 4 7 1 8 2 3 3 Power 3 | 1 . . 2 . . . Engine 3 | 1 . . 2 . . . Core . | . . . . . . . Reactor . | . . . . . . . Propulsion 12 | 2 4 . 2 1 2 1 Treads 2 | 2 . . . . . . Leg 3 | . . . . . 2 1 Wheel . | . . . . . . . Hover . | . . . . . . . Flight 7 | . 4 . 2 1 . . Utility 7 | . 1 1 1 1 1 2 Device 3 | . . . 1 1 . 1 Storage 2 | . 1 . . . 1 . Processor 1 | . . 1 . . . . Hackware . | . . . . . . . Protection 1 | . . . . . . 1 Artifact . | . . . . . . . Weapon 6 | 1 2 . 3 . . . Energy Gun 4 | 1 2 . 1 . . . Energy Cannon . | . . . . . . . Ballistic Gun . | . . . . . . . Ballistic Cannon . | . . . . . . . Launcher . | . . . . . . . Special Weapon . | . . . . . . . Impact Weapon 2 | . . . 2 . . . Slashing Weapon . | . . . . . . . Piercing Weapon . | . . . . . . . Special Melee Weapon . | . . . . . . . Unidentified Prototypes 1 | . 1 . . . . . Parts Lost 10 | . . . 3 2 . 5 Power 3 | . . . 2 . . 1 Propulsion 3 | . . . 1 1 . 1 Utility 2 | . . . . 1 . 1 Weapon 2 | . . . . . . 2 Highest Loss Streak 5 | . . . 2 2 . 5 To Critical Strikes . | . . . . . . . Average Slot Usage (%) 87 | . 60 76 95 100 100 92 Engine 11 | . 14 14 9 11 11 8 Treads 2 | . 14 . . . . . Leg 10 | . . . . . 19 22 Flight 17 | . 12 28 32 33 13 10 Device 6 | . . . 10 11 11 8 Storage 10 | . 5 14 11 11 11 11 Processor 8 | . . 5 11 11 11 11 Energy Gun 4 | . 12 14 2 . . . Impact Weapon 14 | . . . 18 22 22 19 Naked Turns . | . . . . . . . Heaviest Build 88 | 4 9 9 13 13 88 88 Greatest Support 60 | 3 10 10 14 14 60 60 Greatest Overweight (x) 1 | 1 1 . . . 1 1 Average Overweight (x) . | . . . . . . 1 Largest Inventory Capacity 25 | 5 8 8 8 8 25 25 Average Capacity 15 | 5 6 8 8 8 23 25 Most Carried 15 | 5 8 8 8 8 14 15 Average Carried 9 | 3 5 7 5 6 11 14 Final Capacity 25 | 5 8 8 8 8 25 25 Final Carried 14 | 4 7 7 5 6 14 14 Class Distribution -------------------- 60% | Mutant 20% | Assassin 19% | Sprinter Dominant Class ---------------- Mutant | -10/Materials Mutant | -10/Mines Sprinter | -9/Materials Sprinter | -9/Mines Mutant | -9/Exiles Assassin | -8/Mines Resources | -11 -10 -10 -9 -9 -9 -8 ----------- Run | Jun Mat Min Mat Min Exi Min Matter Collected 403 | 237 . 19 129 . . 18 Remotely . | . . . . . . . Salvage Created 154 | . . . 150 . . 4 Parts 2 | . . . 2 . . . Haulers Intercepted . | . . . . . . . Recyclers Shooed . | . . . . . . . Parts Field Recycled . | . . . . . . . Retrieved Matter . | . . . . . . . Parts Self-Destructed . | . . . . . . . Prevented . | . . . . . . . Kills | -11 -10 -10 -9 -9 -9 -8 ------- Run | Jun Mat Min Mat Min Exi Min Combat Hostiles Destroyed 6 | . . . 6 . . . Melee 3 | . . . 3 . . . Classes Destroyed 4 | . . . 4 . . . Watcher 1 | . . . 1 . . . Swarmer 4 | . . . 4 . . . Grunt 1 | . . . 1 . . . Sentry 1 | . . . 1 . . . Best Kill Streak 7 | . . . 7 . . . Combat Bots Only 6 | . . . 6 . . . Max Kills in Single Turn 1 | . . . 1 . . . Gunslinging . | . . . . . . . Exploded . | . . . . . . . Melee 1 | . . . 1 . . . Uniques/NPCs Destroyed . | . . . . . . . Combat | -11 -10 -10 -9 -9 -9 -8 -------- Run | Jun Mat Min Mat Min Exi Min Damage Taken 1679 | . 62 14 308 80 . 1215 Core 420 | . . 14 87 . . 319 Absorbed by Shields . | . . . . . . . Redirected to Shielding 50 | . . . . . . 50 Regen/Repaired (Parts) 39 | . 39 . . . . . Core Remaining (%) 97 | 100 . 94 . . . . Volleys Fired . | . . . . . . . Largest . | . . . . . . . Hottest . | . . . . . . . Shots Fired . | . . . . . . . Gun . | . . . . . . . Cannon . | . . . . . . . Launcher . | . . . . . . . Special . | . . . . . . . Kinetic . | . . . . . . . Thermal . | . . . . . . . Explosive . | . . . . . . . Electromagnetic . | . . . . . . . Robot Hit Streak . | . . . . . . . Robot Miss Streak . | . . . . . . . Penetration Max . | . . . . . . . Secondary Targets . | . . . . . . . Shots Hit Robots 21 | . . . 14 . . 7 Core Hits 3 | . . . 2 . . 1 Critical Kills . | . . . . . . . Critical Parts Destroyed 4 | . . . 3 . . 1 Critical Strikes 4 | . . . 3 . . 1 Smash 4 | . . . 3 . . 1 Melee Attacks 40 | . . . 24 5 . 11 Impact 40 | . . . 24 5 . 11 Slashing . | . . . . . . . Piercing . | . . . . . . . Sneak Attacks . | . . . . . . . Combat Hostiles . | . . . . . . . Follow-up Attacks 2 | . . . 2 . . . Damage Inflicted 689 | . . . 447 . . 242 Guns . | . . . . . . . Cannons . | . . . . . . . Explosions . | . . . . . . . Melee 689 | . . . 447 . . 242 Ramming . | . . . . . . . Kinetic . | . . . . . . . Thermal . | . . . . . . . Explosive . | . . . . . . . Electromagnetic . | . . . . . . . Impact 689 | . . . 447 . . 242 Slashing . | . . . . . . . Piercing . | . . . . . . . Highest Corruption 2 | . . . . 2 2 2 Average Corruption 2 | . . . . 2 2 2 Corruption Purged . | . . . . . . . Corruption Blocked . | . . . . . . . Effects 12 | . . . . 1 5 6 Message Errors 3 | . . . . 1 1 1 Matter Fused 3 | . . . . . 1 2 Heat Flow Errors 3 | . . . . . 2 1 Parts Rejected 1 | . . . . . . 1 Data Loss (minor) 1 | . . . . . 1 . Alerts 1 | . . . . . . 1 Overload Shots . | . . . . . . . Overflow Damage 198 | . . . 164 . . 34 Projectiles . | . . . . . . . Explosions . | . . . . . . . Melee 198 | . . . 164 . . 34 Knockbacks 4 | . . . . . . 4 Impact 3 | . . . . . . 3 Kinetic . | . . . . . . . Secondary 1 | . . . . . . 1 Self-Inflicted Damage . | . . . . . . . Shots . | . . . . . . . Rammed . | . . . . . . . Targets Rammed . | . . . . . . . Kicked . | . . . . . . . Crushed . | . . . . . . . Highest Temperature 258 | . 3 . . . 258 92 Average Temperature 82 | . 3 . . . 121 30 Received Heat Transfer 738 | . 15 9 57 . . 657 Siege Activations . | . . . . . . . Robots Corrupted . | . . . . . . . Combat Hostiles . | . . . . . . . Parts Fried 7 | . . . 7 . . . Impact Corruptions 10 | . . . 9 . . 1 Robots Melted . | . . . . . . . Combat Hostiles . | . . . . . . . Parts Melted . | . . . . . . . Heat Transferred . | . . . . . . . Parts Sabotaged . | . . . . . . . Parts Stolen . | . . . . . . . Parts Stripped . | . . . . . . . Power Chain Reactions . | . . . . . . . Missiles Intercepted . | . . . . . . . Alert | -11 -10 -10 -9 -9 -9 -8 ------- Run | Jun Mat Min Mat Min Exi Min Peak Influence 230 | . 15 60 230 90 . 15 Initial 89 | . . 5 23 89 . . Average 26 | . . 29 102 79 . 1 Maximum Alert Level 1 | . . . 1 . . . Low Security (%) 98 | 100 100 100 86 100 . 100 Level 1 1 | . . . 13 . . . Level 2 . | . . . . . . . Level 3 . | . . . . . . . Level 4 . | . . . . . . . Level 5 . | . . . . . . . High Security . | . . . . . . . Max Security . | . . . . . . . Squads Dispatched . | . . . . . . . Investigation . | . . . . . . . Extermination . | . . . . . . . Reinforcement . | . . . . . . . Assault . | . . . . . . . Garrison . | . . . . . . . Intercept . | . . . . . . . Searches Triggered . | . . . . . . . Construction Impeded . | . . . . . . . Haulers Reinforced . | . . . . . . . Active Scanning Responses . | . . . . . . . Cargo Convoy Interrupts . | . . . . . . . Stealth | -11 -10 -10 -9 -9 -9 -8 --------- Run | Jun Mat Min Mat Min Exi Min Distress Signals 2 | . . . 2 . . . Communications Jammed . | . . . . . . . Distress Signals . | . . . . . . . Times Spotted 34 | . 7 6 16 1 . 4 Peak Tracking Total 8 | . 7 2 8 1 . 4 Tactical Retreats 6 | . . 2 3 . . 1 Traps | -11 -10 -10 -9 -9 -9 -8 ------- Run | Jun Mat Min Mat Min Exi Min Traps Triggered . | . . . . . . . Indirectly . | . . . . . . . Trap Hack Attempts . | . . . . . . . Triggered . | . . . . . . . Disarmed . | . . . . . . . Reprogrammed . | . . . . . . . Reused . | . . . . . . . Traps Extracted . | . . . . . . . Installed . | . . . . . . . Triggered 1 | . . 1 . . . . Machines | -11 -10 -10 -9 -9 -9 -8 ---------- Run | Jun Mat Min Mat Min Exi Min Machines Disabled 1 | . . . . . . 1 Max in Single Turn 1 | . . . . . . 1 Machines Repaired . | . . . . . . . Machines Sabotaged . | . . . . . . . Overloaded Fab Kills . | . . . . . . . Hacking | -11 -10 -10 -9 -9 -9 -8 --------- Run | Jun Mat Min Mat Min Exi Min Machines Accessed 4 | . 1 1 . . 2 . Terminals . | . . . . . . . Fabricators . | . . . . . . . Repair Stations 1 | . 1 . . . . . Recycling Units . | . . . . . . . Scanalyzers . | . . . . . . . Garrison Access . | . . . . . . . Total Hacks 5 | . 2 1 . . 2 . Successful 5 | . 2 1 . . 2 . Failed . | . . . . . . . Catastrophic . | . . . . . . . Database Lockouts . | . . . . . . . Manual 1 | . . . . . 1 . Terminals . | . . . . . . . Fabricators . | . . . . . . . Repair Stations 2 | . 2 . . . . . Recycling Units . | . . . . . . . Scanalyzers . | . . . . . . . Garrison Access . | . . . . . . . Terminal Hacks 3 | . . 1 . . 2 . Record 1 | . . . . . 1 . Open Door 1 | . . 1 . . . . EX-Prototype ID Bank 1 | . . . . . 1 . Fabricator Hacks . | . . . . . . . Repair Station Hacks 2 | . 2 . . . . . Scan Component 1 | . 1 . . . . . Repair 1 | . 1 . . . . . Recycling Unit Hacks . | . . . . . . . Scanalyzer . | . . . . . . . Garrison Access Hacks . | . . . . . . . Unauthorized Hacks . | . . . . . . . Terminals . | . . . . . . . Fabricators . | . . . . . . . Repair Stations . | . . . . . . . Recycling Units . | . . . . . . . Scanalyzers . | . . . . . . . Garrison Access . | . . . . . . . Data Cores Recovered . | . . . . . . . Used . | . . . . . . . Hacking Detections . | . . . . . . . Full Trace Events . | . . . . . . . Feedback Events . | . . . . . . . Feedback Blocked . | . . . . . . . Robot Schematics Acquired . | . . . . . . . Robots Built . | . . . . . . . Authchips . | . . . . . . . Time . | . . . . . . . Total Robot Build Rating . | . . . . . . . Part Schematics Acquired . | . . . . . . . Parts Built . | . . . . . . . Authchips . | . . . . . . . Time . | . . . . . . . Total Part Build Rating . | . . . . . . . Parts Repaired 1 | . 1 . . . . . Time 26 | . 26 . . . . . Parts Recycled . | . . . . . . . Recycled Matter . | . . . . . . . Retrieved Matter . | . . . . . . . Retrieved Components . | . . . . . . . Parts Scanalyzed . | . . . . . . . Part Schematics Acquired . | . . . . . . . Parts Damaged . | . . . . . . . Bothacking | -11 -10 -10 -9 -9 -9 -8 ------------ Run | Jun Mat Min Mat Min Exi Min Used RIF Installer . | . . . . . . . Robots Hacked . | . . . . . . . Non-combat . | . . . . . . . Combat . | . . . . . . . Robot Hacks Applied . | . . . . . . . Relay Couplers Released . | . . . . . . . Fabnet Peak Effective % . | . . . . . . . Robots Rewired . | . . . . . . . Allies Hacked . | . . . . . . . Hacks Repelled . | . . . . . . . Allies | -11 -10 -10 -9 -9 -9 -8 -------- Run | Jun Mat Min Mat Min Exi Min Total Allies 3 | . . . . 3 . . Largest Group 3 | . . . . 3 . . Highest-Rated Group 40 | . . . . 40 . . Highest-Rated Ally 16 | . . . . 16 . . Total Orders 1 | . . . . . . 1 EXPLORE 1 | . . . . . . 1 Ally Attacks . | . . . . . . . Total Damage . | . . . . . . . Kills . | . . . . . . . Allies Corrupted . | . . . . . . . Allies Melted . | . . . . . . . Intel | -11 -10 -10 -9 -9 -9 -8 ------- Run | Jun Mat Min Mat Min Exi Min Robot Analysis Total . | . . . . . . . Derelict Logs Recovered 4 | . . 1 . 3 . . Drone Launches 1 | . . . . . . 1 Drone Recoveries 1 | . . . . . . 1 Exploration | -11 -10 -10 -9 -9 -9 -8 ------------- Run | Jun Mat Min Mat Min Exi Min Turns Passed 1490 | 42 256 176 119 143 356 398 Spaces Moved 1708 | 39 201 469 130 418 301 150 Core 178 | 39 139 . . . . . Treads . | . . . . . . . Legs 334 | . . . . . 184 150 Wheels . | . . . . . . . Hover . | . . . . . . . Flight 1196 | . 62 469 130 418 117 . Fastest Speed 30 | 50 37 37 32 30 30 170 Average Speed 66 | 79 80 37 32 30 115 170 Slowest Speed 170 | 100 100 37 37 32 170 170 Overloaded Moves . | . . . . . . . Propulsion Burnouts . | . . . . . . . Robots Hopped 16 | . . 11 . 5 . . Cave-ins Triggered 1 | . . . . 1 . . Exploration Rate (%) 44 | 4 29 61 15 82 71 51 Regions Visited 6 Branch Regions 4 Pre-discovered Areas 3 | . . 1 . 1 1 . Known Exits Taken . | . . . . . . . Unknown Exits Taken 6 | 1 1 1 1 1 1 . Scrap Searched 3 | . . 1 . 1 . 1 Spaces Dug 3 | . . . . 3 . . Terrain Destroyed 3 | . . . . 3 . . Melee 3 | . . . . 3 . . Projectile . | . . . . . . . AOE . | . . . . . . . Terrain Rammed . | . . . . . . . Walls Destroyed . | . . . . . . . Machines Disabled . | . . . . . . . Actions | -11 -10 -10 -9 -9 -9 -8 --------- Run | Jun Mat Min Mat Min Exi Min Total 1973 | 48 295 459 168 420 308 275 Wait 187 | . 76 . . . . 111 Move 1670 | 38 200 446 129 407 300 150 Hop 16 | . . 11 . 5 . . Pick Up 29 | 6 7 1 6 3 5 1 Fast Attach 5 | 2 2 . 1 . . . Attach 18 | 2 5 1 7 2 . 1 Detach 1 | . 1 . . . . . Swap 5 | . . . . . 3 2 Drop 7 | . 4 . 3 . . . Fire . | . . . . . . . Melee 35 | . . . 22 3 . 10 Ram . | . . . . . . . Kick . | . . . . . . . Crush . | . . . . . . . Escape Stasis . | . . . . . . . Rewire . | . . . . . . . Trap . | . . . . . . . Miscellaneous . | . . . . . . . Route ------- -11/Junkyard -10/Materials -10/Mines (discovered 2 exits: [*Mat x2]) -9/Materials -9/Mines (discovered 2 exits: [*Mat] / *Exi) -9/Exiles (discovered 2 exits: [*Min x2]) -8/Mines History --------- Turn | Location | Event 8 | -11/Junkyard | Discovered new exit (range 15) 43 | -11/Junkyard | Entered Materials 280 | -10/Materials | Repaired Sml. Laser 293 | -10/Materials | Discovered new exit (range 16) 299 | -10/Materials | Entered Mines 304 | -10/Mines | Build established: Mutant 324 | -10/Mines | Discovered new exit (range 6) 332 | -10/Mines | Learned location of Zion (-6) 364 | -10/Mines | Met a Derelict bent on vengeance 399 | -10/Mines | Met a Derelict who couldn't figure out how to use a Trap Extractor 456 | -10/Mines | Discovered new exit (range 9) 475 | -10/Mines | Entered Materials 475 | -9/Materials | Evolved 2 slots: Propulsion x1, Utility x1 587 | -9/Materials | Discovered new exit (range 16) 594 | -9/Materials | Entered Mines 597 | -9/Mines | Learned location of Storage (-7) 610 | -9/Mines | Learned Materials emergency access door positions 610 | -9/Mines | Joined a pair of Derelicts in attacking an 0b10 outpost 661 | -9/Mines | Crushed by falling debris 684 | -9/Mines | Discovered new exit (range 20) 703 | -9/Mines | Received a Mining Laser from a helpful Derelict 711 | -9/Mines | Assisted by bots powering up and referring to "LRC-V3" 729 | -9/Mines | Learned Materials garrison access intel 736 | -9/Mines | Deemed a non-threat by the Exiles lab entrance 736 | -9/Mines | Discovered new exit (range 5) 737 | -9/Mines | Entered Exiles 741 | -9/Exiles | Discovered new exit (range 19) 745 | -9/Exiles | Met 8R-AWN 750 | -9/Exiles | Met EX-HEX 758 | -9/Exiles | Met EX-BIN 762 | -9/Exiles | Aligned with FarCom system 762 | -9/Exiles | Given EX-Vault access code 769 | -9/Exiles | Opened EX-Vault 772 | -9/Exiles | Found Potential Leg 774 | -9/Exiles | Found Potential Leg 789 | -9/Exiles | Found AWS/Autocannon 794 | -9/Exiles | Found Supersonic Drone Bay 834 | -9/Exiles | Warned to stay clear of 0b10 Research branches 873 | -9/Exiles | Met EX-DEC 1080 | -9/Exiles | Discovered new exit (range 10) 1093 | -9/Exiles | Stole three prototypes: Potential Leg, Supersonic Drone Bay, AWS/Autocannon 1093 | -9/Exiles | Entered Mines 1388 | -8/Mines | Build established: Assassin 1433 | -8/Mines | Core integrity fell below 50% 1459 | -8/Mines | Core integrity fell below 20% 1491 | -8/Mines | Destroyed by H-55 Commando with Gauss Rifle Last Messages --------------- 01433_ G-50 Soldier system corrupted by crushing effect. 01438_ Propulsion Shielding destroyed. 01440_ Critical hit (Burn: +37). 01442_ K-01 Serf collects debris. 01458_ Penetrated by Slug. 01459_ G-50 Soldier misfires. 01460_ System corrupted: Potential Leg rejected. 01460_ Acquired Potential Leg. 01461_ Penetrated by Slug. 01461_ G-50 Soldier misfires. 01464_ Penetrated by Slug. 01466_ Imp. Flight Unit destroyed. 01467_ Slug penetrates Wall. 01467_ Mace destroyed. 01476_ Slug penetrates Wall. 01480_ K-01 Serf cleans the Laser Drill. 01482_ QY5 %AULQWU,IS8 &JGOB84U8FXXIVOV 01482_ Slug penetrates Wall. 01488_ Penetrated by Slug. 01491_ Slug penetrates Wall. Map ----- +----------------------------------------------------+ | ?????????## ###?????????????????????????? | | ????###### #?????????????????????????? | | ???## ### #????????????????????????? | | ???# ##??### ##????????????????????????? | | ??## """ ##??????##?????????????????????????? | | ?## ""% ##?#####????????????????????????????? | | ?# """ #### ##???????????????????????????? | | ?# ## ######??????????????????????? | | ?## g ######?????????????????? | | ??#### ##????????????????? | | ?????## #????????????????? | | ??????# ### ##????????????????? | | ??????# ##?# ##! ###?????????????????? | | ??????## ##??# ### !#???????????????????? | | ???????## ##???# ### !#???????????????????? | | ????????## ##????# h ##??????????????????? | | ?????????#####?????# g #??????????????????? | | ???????????????????#####g #????#####?????????? | | ?????????????????????## #????# ??????????? | | ????????????????????## ##???# #??????????? | | ????????????????????# ###?# #??????????? | | ????????????????????# ### ##########?? | | ????????????????????## ## # #?? | | ?????????????????????## ### ######## #?? | | ??????????????????????# #?## """ ##?????# #?? | | ??????????????????????#@#??# """ ###???# ### | | ????????????????????? #??## """ ##??# | | ??????????????????? ???## #??### # | | ?????????????????# ????## ### #????# # | | ???????????????? k ##????#####??# ##???## # | | ?????????????? ##?????????????##???## # | | ?????????????### ## #???????????????###### | | ???????????????#??# #????????????????# | | ??????????????????###??????????????#### #### | | ???????????????????????????????????# #?# | | ???????????????????????????????????# ####?# | | ???????????????????????????????????# #????## | | ???????????????????????????????????# #?????##### | | ??????????????????????????????????? #?????????? | | ???????????????????????????????????###?????????? | | ???????????????????????????????????????????????? | | ???????????????????????????????????????????????? | | ???????????????????????????????????????????????? | | ???????????????????????????????????????????????? | | ???????????????????????????????????????????????? | | ???????????????????????????????????????????????? | | | | | | | | | +----------------------------------------------------+ Best States ------------- Heat Dissipation 28 Energy Generation 10 Energy Capacity 125 Matter Stores 300 Matter Capacity 300 Sight Range 20 Robot Scan Range 15 Terrain Scan Density 10 Propulsion Shielding 33 Evasion (%) 64 Item Schematics ----------------- None Robot Schematics ------------------ None Fabricated ------------ Nothing Alien Tech Used ----------------- None Achievements -------------- None Challenges ------------ None Game ------ Seed HelicalSmallSpoofer Manual? 0 Play Time 00:14:10 Cumulative 73.2 hours Start 2023.10.18 @ 17:19:52 End 2023.10.18 @ 17:35:12 Sessions 1 Manual Loads 0 Difficulty Rogue Special Mode None Game No. 123 Rogue 120 Adventurer 3 Explorer 0 Win Type - Total 0 Types 0/0/0/0/0/0/0/0/0 Lore% 34 Gallery% 51 Achievement% 36 Wizard Run 0 Options --------- ASCII 0 Keyboard 0 Movement Mouse Keybinds 0 Fullscreen 2 Font 18/SmallcapsGlow Map View 76x50 Tactical HUD 1 Map Filters NONE Filters NONE Steam 1 RUN: 8c0e887e-a79c-482f-9239-7b2aa6942f3c